fUSD/lending_fUSD_20250225
["ID","MTS","AMOUNT","RATE_DAILY","PERIOD"]
[354485426,1740527449774,-500.0,0.00046575,120]
[354485427,1740527449784,-502.47274275,0.00046575,120]
[354485428,1740527449794,-500.0,0.00046575,120]
[354485429,1740527449804,-500.0,0.00046575,120]
[354485430,1740527449813,-249.017467,0.00046575,120]
[354485431,1740527449822,-500.0,0.00046575,120]
[354485432,1740527449832,-2460.77,0.00046575,120]
[354485433,1740527449841,-500.0,0.00046575,120]
[354485434,1740527449851,-500.0,0.00046575,120]
[354485435,1740527449860,-3455.77,0.00046575,120]
[354485436,1740527449869,-2996.31,0.00046575,120]
[354485437,1740527449879,-500.0,0.00046575,120]
[354485438,1740527449889,-953.66,0.00046575,120]
[354485439,1740527449899,-3150.92,0.00046575,120]
[354485440,1740527449909,-502.51166852,0.00046575,120]
[354485441,1740527449919,-500.0,0.00046575,120]
[354485442,1740527449930,-575.91,0.00046575,120]
[354485443,1740527449940,-500.0,0.00046575,120]
[354485444,1740527449951,-500.0,0.00046575,120]
[354485445,1740527449962,-500.0,0.00046575,120]
[354485446,1740527449973,-502.49958928,0.00046575,120]
[354485447,1740527449982,-500.0,0.00046575,120]
[354485448,1740527449991,-500.0,0.00046575,120]
[354485449,1740527450001,-560.85,0.00046575,120]
[354485450,1740527450010,-502.55944085,0.00046575,120]
[354485451,1740527450019,-4339.1,0.00046575,120]
[354485452,1740527450029,-500.0,0.00046575,120]
[354485453,1740527450039,-3934.3,0.00046575,120]
[354485454,1740527450049,-2831.92,0.00046575,120]
[354485455,1740527450059,-500.0,0.00046575,120]
[354485456,1740527450069,-500.85935361,0.00046575,120]
[354485457,1740527450078,-501.84664367,0.00046575,120]
[354485458,1740527450087,-501.14960229,0.00046575,120]
[354485459,1740527450097,-500.0,0.00046575,120]
[354485460,1740527450106,-500.0,0.00046575,120]
[354485461,1740527450115,-3338.05,0.00046575,120]
[354485462,1740527450124,-500.0,0.00046575,120]
[354485463,1740527450133,-1347.0,0.00046575,120]
[354485464,1740527450143,-500.0,0.00046575,120]
[354485465,1740527450152,-575.62,0.00046575,120]
[354485466,1740527450161,-987.88,0.00046575,120]
[354485467,1740527450170,-3378.84,0.00046575,120]
[354485468,1740527450180,-2358.74,0.00046575,120]
[354485469,1740527450189,-976.56,0.00046575,120]
[354485470,1740527450198,-500.0,0.00046575,120]
[354485471,1740527450208,-501.46770317,0.00046575,120]
[354485472,1740527450220,-500.0,0.00046575,120]
[354485473,1740527450231,-835.51,0.00046575,120]
[354485474,1740527450240,-501.62299493,0.00046575,120]
[354485475,1740527450251,-2345.57,0.00046575,120]
[354485476,1740527450261,-3180.36,0.00046575,120]
[354485477,1740527450270,-500.0,0.00046575,120]
[354485478,1740527450279,-3168.88,0.00046575,120]
[354485479,1740527450291,-342.24666139,0.00046575,120]
[354485480,1740527450300,-500.0,0.00046575,120]
[354485481,1740527450309,-676.19,0.00046575,120]
[354485482,1740527450319,-3588.56,0.00046575,120]
[354485483,1740527450328,-1275.72,0.00046575,120]
[354485484,1740527450337,-1607.56,0.00046575,120]
[354485485,1740527450347,-500.0,0.00046575,120]
[354485486,1740527450357,-500.0,0.00046575,120]
[354485487,1740527450366,-4477.64,0.00046575,120]
[354485488,1740527450376,-1976.81259207,0.00046575,30]
[354485489,1740527450385,-500.0,0.00046575,120]
[354485490,1740527450395,-1077.96,0.00046575,120]
[354485491,1740527450405,-500.0,0.00046575,120]
[354485492,1740527450415,-4365.28,0.00046575,120]
[354485493,1740527450424,-500.0,0.00046575,120]
[354485494,1740527450433,-500.0,0.00046575,120]
[354485495,1740527450444,-2088.33,0.00046575,120]
[354485496,1740527450453,-1095.63,0.00046575,120]
[354485497,1740527450463,-2754.4,0.00046575,120]
[354485498,1740527450473,-3677.08,0.00046575,120]
[354485499,1740527450482,-500.0,0.00046575,120]
[354485500,1740527450492,-500.0,0.00046575,120]
[354485501,1740527450501,-500.0,0.00046575,120]
[354485502,1740527450511,-555.56,0.00046575,120]
[354485503,1740527450520,-4734.26,0.00046575,120]
[354485504,1740527450530,-500.0,0.00046575,120]
[354485505,1740527450539,-679.59,0.00046575,120]
[354485506,1740527450552,-500.0,0.00046575,120]
[354485507,1740527450681,-500.0,0.00046575,120]
[354485508,1740527450701,-5521.3,0.00046575,120]
[354485509,1740527450711,-173.6472,0.00046575,120]
[354485510,1740527450721,-1229.93,0.00046575,120]
[354485511,1740527450733,-509.2340643,0.00046575,120]
[354485512,1740527450743,-1471.52,0.00046575,120]
[354485513,1740527450752,-500.0,0.00046575,120]
[354485514,1740527450761,-500.0,0.00046575,120]
[354485515,1740527450771,-500.0,0.00046575,120]
[354485516,1740527450781,-501.61845612,0.00046575,120]
[354485517,1740527450790,-4218.75,0.00046575,120]
[354485518,1740527450800,-2980.23,0.00046575,120]
[354485519,1740527450809,-6539.48,0.00046575,120]
[354485520,1740527450819,-500.0,0.00046575,120]
[354485521,1740527450829,-500.0,0.00046575,120]
[354485522,1740527450838,-500.0,0.00046575,120]
[354485523,1740527450848,-5586.68,0.00046575,120]
[354485524,1740527450858,-1424.11,0.00046575,120]
[354485525,1740527450867,-500.0,0.00046575,120]
[354485526,1740527450877,-791.88,0.00046575,120]
[354485527,1740527450886,-524.28488213,0.00046575,120]
[354485528,1740527450895,-3254.46,0.00046575,120]
[354485529,1740527450905,-1467.88,0.00046575,120]
[354485530,1740527450914,-500.0,0.00046575,120]
[354485531,1740527450924,-3976.84,0.00046575,120]
[354485532,1740527450933,-500.0,0.00046575,120]
[354485533,1740527450943,-1255.01,0.00046575,120]
[354485534,1740527450952,-1487.22,0.00046575,120]
[354485535,1740527450962,-5819.2,0.00046575,120]
[354485536,1740527450974,-500.0,0.00046575,120]
[354485537,1740527450983,-2742.22,0.00046575,120]
[354485538,1740527450993,-500.0,0.00046575,120]
[354485539,1740527451003,-500.0,0.00046575,120]
[354485540,1740527451012,-500.0,0.00046575,120]
[354485541,1740527451022,-501.0765823,0.00046575,120]
[354485542,1740527451032,-1839.88,0.00046575,120]
[354485543,1740527451041,-500.0,0.00046575,120]
[354485544,1740527451051,-601.89,0.00046575,120]
[354485545,1740527451062,-504.05854464,0.00046575,120]
[354485546,1740527451071,-503.77587726,0.00046575,120]
[354485547,1740527451081,-603.98,0.00046575,120]
[354485548,1740527451092,-1381.85,0.00046575,120]
[354485549,1740527451102,-1162.89,0.00046575,7]
[354485550,1740527451112,-502.84947574,0.00046575,120]
[354485551,1740527451121,-3777.99,0.00046575,120]
[354485552,1740527451131,-596.35712817,0.00046575,120]
[354485553,1740527451142,-1803.33,0.00046575,120]
[354485554,1740527451152,-7403.91,0.00046575,100]
[354485555,1740527451162,-1635.98,0.00046575,120]
[354485556,1740527451171,-209.5,0.00046575,7]
[354485557,1740527451181,-536.29386611,0.00046575,120]
[354485558,1740527451190,-3856.53,0.00046575,120]
[354485559,1740527451200,-500.0,0.00046575,120]
[354485560,1740527451211,-546.21,0.00046575,120]
[354485561,1740527451223,-728.08,0.00046575,120]
[354485562,1740527451233,-500.0,0.00046575,120]
[354485563,1740527451242,-500.0,0.00046575,120]
[354485564,1740527451252,-500.0,0.00046575,120]
[354485565,1740527451264,-670.92,0.00046575,120]
[354485566,1740527451273,-2093.16,0.00046575,120]
[354485567,1740527451283,-1388.01,0.00046575,120]
[354485568,1740527451294,-500.0,0.00046575,120]
[354485569,1740527451304,-5977.93,0.00046575,120]
[354485570,1740527451314,-500.0,0.00046575,120]
[354485571,1740527451323,-3974.81,0.00046575,120]
[354485572,1740527451333,-285.44811082,0.00046575,120]
[354485573,1740527451342,-1609.63,0.00046575,120]
[354485574,1740527451352,-500.0,0.00046575,120]
[354485575,1740527451362,-1934.48,0.00046575,120]
[354485576,1740527451371,-534.73,0.00046575,120]
[354485577,1740527451381,-502.40492578,0.00046575,120]
[354485578,1740527451391,-691.76,0.00046575,120]
[354485579,1740527451400,-500.0,0.00046575,120]
[354485580,1740527451410,-508.58,0.00046575,120]
[354485581,1740527451420,-503.60353971,0.00046575,120]
[354485582,1740527451429,-2720.16,0.00046575,120]
[354485583,1740527451439,-500.0,0.00046575,120]
[354485584,1740527451449,-668.41,0.00046575,120]
[354485585,1740527451458,-2360.7,0.00046575,120]
[354485586,1740527451468,-594.72,0.00046575,120]
[354485587,1740527451479,-500.0,0.00046575,120]
[354485588,1740527451488,-1950.62,0.00046575,120]
[354485589,1740527451497,-500.0,0.00046575,120]
[354485590,1740527451507,-501.92817626,0.00046575,120]
[354485591,1740527451516,-1055.01,0.00046575,120]
[354485592,1740527451526,-500.0,0.00046575,120]
[354485593,1740527451535,-866.76,0.00046575,120]
[354485594,1740527451545,-500.0,0.00046575,120]
[354485595,1740527451555,-838.55,0.00046575,120]
[354485596,1740527451565,-2526.01,0.00046575,120]
[354485597,1740527451574,-639.29,0.00046575,120]
[354485598,1740527451583,-5397.14,0.00046575,120]
[354485599,1740527451593,-2676.93,0.00046575,120]
[354485600,1740527451602,-2071.52,0.00046575,120]
[354485601,1740527451612,-502.62820688,0.00046575,120]
[354485602,1740527451621,-500.0,0.00046575,120]
[354485603,1740527451631,-1732.84,0.00046575,120]
[354485604,1740527451641,-500.0,0.00046575,120]
[354485605,1740527451651,-500.0,0.00046575,120]
[354485606,1740527451660,-4074.71,0.00046575,120]
[354485607,1740527451670,-1914.18,0.00046575,120]
[354485608,1740527451679,-3050.24,0.00046575,120]
[354485609,1740527451689,-511.24537219,0.00046575,120]
[354485610,1740527451698,-5167.07,0.00046575,120]
[354485611,1740527451708,-938.56,0.00046575,120]
[354485612,1740527451718,-500.0,0.00046575,120]
[354485613,1740527451728,-1764.29,0.00046575,120]
[354485614,1740527451737,-1005.04,0.00046575,120]
[354485615,1740527451747,-1754.56,0.00046575,120]
[354485616,1740527451757,-2316.36,0.00046575,120]
[354485617,1740527451767,-500.0,0.00046575,120]
[354485618,1740527451777,-500.0,0.00046575,120]
[354485619,1740527451787,-4543.44,0.00046575,120]
[354485620,1740527451797,-504.21112612,0.00046575,120]
[354485621,1740527451806,-1274.12,0.00046575,120]
[354485622,1740527451816,-3458.36,0.00046575,120]
[354485623,1740527451826,-500.0,0.00046575,120]
[354485624,1740527451835,-2342.14,0.00046575,120]
[354485625,1740527451845,-500.0,0.00046575,120]
[354485626,1740527451855,-150.0,0.00046575,120]
[354485627,1740527451864,-2427.69,0.00046575,120]
[354485628,1740527451873,-500.0,0.00046575,120]
[354485629,1740527451883,-500.0,0.00046575,120]
[354485630,1740527451893,-580.58909993,0.00046579,120]
[354485631,1740527451903,-6153.41776479,0.00046589,15]
[354485632,1740527451913,-1000.0,0.00046602,120]
[354485633,1740527451922,-580.58909993,0.00046602,120]
[354485634,1740527451931,-580.58909993,0.00046625,120]
[354485635,1740527451941,-1000.0,0.00046629,120]
[354485636,1740527451951,-580.58909993,0.00046648,120]
[354485637,1740527451961,-4871.21485951,0.00046649,30]
[354485638,1740527451970,-6153.41776479,0.00046651,15]
[354485639,1740527451980,-211.71,0.00046656,120]
[354485640,1740527451990,-580.58909993,0.00046671,120]
[354485641,1740527452000,-172.82736112,0.00046673,15]
[354485642,1740527452010,-580.58909993,0.00046694,120]
[354485643,1740527452021,-2000.0,0.000467,120]
[354485644,1740527452031,-886.67,0.00046712,30]
[354485645,1740527452040,-776.49,0.00046712,30]
[354485646,1740527452050,-776.49,0.00046712,30]
[354485647,1740527452061,-1492.71,0.00046712,30]
[354485648,1740527452070,-776.31,0.00046712,30]
[354485649,1740527452080,-6153.41776479,0.00046713,15]
[354485650,1740527452089,-580.58909993,0.00046717,120]
[354485651,1740527452099,-580.58909993,0.0004674,120]
[354485652,1740527452109,-979.93213221,0.00046741,120]
[354485653,1740527452119,-979.93213221,0.00046743,120]
[354485654,1740527452129,-580.58909993,0.00046763,120]
[354485655,1740527452138,-6153.41776479,0.00046775,15]
[354485656,1740527452149,-150.0,0.00046783,2]
[354485657,1740527452159,-580.58909993,0.00046786,120]
[354485658,1740527452169,-50000.0,0.000468,120]
[354485659,1740527452178,-580.58909993,0.00046808,120]
[354485660,1740527452188,-50000.0,0.0004681,120]
[354485661,1740527452198,-50000.0,0.0004682,120]
[354485662,1740527452208,-11677.0,0.00046822,120]
[354485663,1740527452223,-1169.0,0.00046822,120]
[354485664,1740527452233,-459.71200718,0.00046828,120]
[354485665,1740527452244,-580.58909993,0.00046831,120]
[354485666,1740527452255,-1246.0,0.00046837,120]
[354485667,1740527452265,-500.0,0.00046837,120]
[354485668,1740527452275,-6153.41776479,0.00046837,15]
[354485669,1740527452285,-459.71200718,0.00046838,120]
[354485670,1740527452295,-1246.0,0.00046847,120]
[354485671,1740527452304,-500.0,0.00046847,120]
[354485672,1740527452314,-154.98,0.00046848,120]
[354485673,1740527452324,-1246.0,0.00046848,120]
[354485674,1740527452333,-1246.0,0.00046848,120]
[354485675,1740527452343,-1246.0,0.00046848,120]
[354485676,1740527452352,-500.0,0.00046848,120]
[354485677,1740527452362,-500.0,0.00046848,120]
[354485678,1740527452371,-500.0,0.00046848,120]
[354485679,1740527452382,-199.29081019,0.00046849,71]
[354485680,1740527452391,-151153.3084231,0.00046849,50]
[354485681,1740527452401,-500.0,0.00046849,120]
[354485682,1740527452410,-499.6239672,0.00046849,120]
[354485683,1740527452420,-500.0,0.00046849,120]
[354485684,1740527452429,-511.05088441,0.00046849,120]
[354485685,1740527452439,-500.0,0.00046849,120]
[354485686,1740527452449,-513.71720834,0.00046849,120]
[354485687,1740527452459,-290.07443673,0.00046849,120]
[354485688,1740527452468,-452.012125,0.00046849,120]
[354485689,1740527452479,-500.0,0.00046849,120]
[354485690,1740527452488,-873.52486,0.00046849,120]
[354485691,1740527452498,-500.0,0.00046849,120]
[354485692,1740527452508,-200.0,0.00046849,7]
[354485693,1740527452517,-500.0,0.00046849,120]
[354485694,1740527452527,-500.0,0.00046849,120]
[354485695,1740527452536,-722.83,0.00046849,120]
[354485696,1740527452546,-751.66,0.00046849,120]
[354485697,1740527452556,-500.0,0.00046849,120]
[354485698,1740527452566,-500.0,0.00046849,120]
[354485699,1740527452576,-500.0,0.00046849,120]
[354485700,1740527452585,-500.0,0.00046849,120]
[354485701,1740527452595,-500.0,0.00046849,120]
[354485702,1740527452605,-500.0,0.00046849,120]
[354485703,1740527452614,-500.0,0.00046849,120]
[354485704,1740527452624,-1016.99,0.00046849,120]
[354485705,1740527452634,-557.09,0.00046849,120]
[354485706,1740527452643,-498.51234087,0.00046849,120]
[354485707,1740527452653,-836.66,0.00046849,120]
[354485708,1740527452663,-500.0,0.00046849,120]
[354485709,1740527452672,-704.05,0.00046849,120]
[354485710,1740527452682,-761.43,0.00046849,120]
[354485711,1740527452692,-444.47380032,0.00046849,120]
[354485712,1740527452702,-500.0,0.00046849,120]
[354485713,1740527452712,-500.0,0.00046849,120]
[354485714,1740527452722,-647.01,0.00046849,120]
[354485715,1740527452732,-500.0,0.00046849,120]
[354485716,1740527452742,-661.53,0.00046849,120]
[354485717,1740527452751,-500.0,0.00046849,120]
[354485718,1740527452761,-1760.4,0.00046849,120]
[354485719,1740527452771,-780.97,0.00046849,120]
[354485720,1740527452781,-500.0,0.00046849,120]
[354485721,1740527452791,-500.0,0.00046849,120]
[354485722,1740527452800,-500.0,0.00046849,120]
[354485723,1740527452810,-500.0,0.00046849,120]
[354485724,1740527452819,-500.0,0.00046849,120]
[354485725,1740527452828,-1616.41,0.00046849,120]
[354485726,1740527452838,-500.0,0.00046849,120]
[354485727,1740527452848,-700.95,0.00046849,120]
[354485728,1740527452857,-553.51,0.00046849,40]
[354485729,1740527452867,-500.0,0.00046849,120]
[354485730,1740527452876,-509.97,0.00046849,120]
[354485731,1740527452886,-504.57518979,0.00046849,120]
[354485732,1740527453198,-509.33,0.00046849,120]
[354485733,1740527453208,-500.0,0.00046849,120]
[354485734,1740527453222,-500.0,0.00046849,120]
[354485735,1740527453232,-524.86,0.00046849,120]
[354485736,1740527453241,-500.0,0.00046849,120]
[354485737,1740527453251,-500.0,0.00046849,120]
[354485738,1740527453260,-500.0,0.00046849,120]
[354485739,1740527453270,-500.0,0.00046849,120]
[354485740,1740527453279,-500.0,0.00046849,120]
[354485741,1740527453289,-500.0,0.00046849,7]
[354485742,1740527453299,-500.0,0.00046849,120]
[354485743,1740527453308,-500.0,0.00046849,120]
[354485744,1740527453318,-500.0,0.00046849,120]
[354485745,1740527453327,-500.0,0.00046849,120]
[354485746,1740527453336,-500.0,0.00046849,120]
[354485747,1740527453346,-784.56,0.00046849,120]
[354485748,1740527453355,-971.96,0.00046849,120]
[354485749,1740527453366,-685.73,0.00046849,120]
[354485750,1740527453375,-1094.75,0.00046849,120]
[354485751,1740527453386,-500.0,0.00046849,120]
[354485752,1740527453395,-775.6,0.00046849,120]
[354485753,1740527453405,-604.81,0.00046849,120]
[354485754,1740527453415,-500.0,0.00046849,120]
[354485755,1740527453425,-500.0,0.00046849,120]
[354485756,1740527453434,-500.0,0.00046849,120]
[354485757,1740527453443,-500.0,0.00046849,120]
[354485758,1740527453453,-875.52,0.00046849,120]
[354485759,1740527453462,-1485.96,0.00046849,120]
[354485760,1740527453472,-522.12,0.00046849,120]
[354485761,1740527453482,-781.77,0.00046849,120]
[354485762,1740527453491,-1122.7,0.00046849,120]
[354485763,1740527453500,-500.0,0.00046849,120]
[354485764,1740527453510,-659.61,0.00046849,120]
[354485765,1740527453519,-573.43895351,0.00046849,120]
[354485766,1740527453528,-1022.31,0.00046849,120]
[354485767,1740527453537,-1431.92,0.00046849,120]
[354485768,1740527453548,-500.0,0.00046849,120]
[354485769,1740527453557,-812.79,0.00046849,120]
[354485770,1740527453567,-1277.67,0.00046849,120]
[354485771,1740527453576,-500.0,0.00046849,120]
[354485772,1740527453586,-500.0,0.00046849,120]
[354485773,1740527453595,-1270.43,0.00046849,120]
[354485774,1740527453605,-905.67,0.00046849,120]
[354485775,1740527453615,-500.0,0.00046849,120]
[354485776,1740527453624,-1214.61,0.00046849,120]
[354485777,1740527453634,-500.0,0.00046849,120]
[354485778,1740527453644,-500.0,0.00046849,120]
[354485779,1740527453653,-500.0,0.00046849,120]
[354485780,1740527453663,-500.0,0.00046849,120]
[354485781,1740527453672,-665.19,0.00046849,120]
[354485782,1740527453681,-500.0,0.00046849,120]
[354485783,1740527453691,-617.8,0.00046849,120]
[354485784,1740527453700,-795.7,0.00046849,120]
[354485785,1740527453710,-848.23,0.00046849,120]
[354485786,1740527453719,-500.0,0.00046849,120]
[354485787,1740527453730,-500.0,0.00046849,120]
[354485788,1740527453739,-750.97,0.00046849,120]
[354485789,1740527453749,-500.0,0.00046849,120]
[354485790,1740527453758,-500.0,0.00046849,120]
[354485791,1740527453767,-382.65678001,0.00046849,120]
[354485792,1740527453777,-500.0,0.00046849,120]
[354485793,1740527453787,-800.58,0.00046849,120]
[354485794,1740527453796,-550.61,0.00046849,120]
[354485795,1740527453806,-450.17403298,0.00046849,120]
[354485796,1740527453815,-500.0,0.00046849,120]
[354485797,1740527453826,-500.0,0.00046849,120]
[354485798,1740527453838,-500.0,0.00046849,120]
[354485799,1740527453848,-500.0,0.00046849,120]
[354485800,1740527453858,-526.14,0.00046849,120]
[354485801,1740527453868,-852.8,0.00046849,120]
[354485802,1740527453877,-667.55,0.00046849,120]
[354485803,1740527453887,-590.0340046,0.00046849,120]
[354485804,1740527453896,-1761.59,0.00046849,20]
[354485805,1740527453905,-500.0,0.00046849,120]
[354485806,1740527453915,-500.0,0.00046849,120]
[354485807,1740527453924,-500.0,0.00046849,120]
[354485808,1740527453934,-500.0,0.00046849,120]
[354485809,1740527453944,-551.38966824,0.00046849,120]
[354485810,1740527453953,-1136.62,0.00046849,120]
[354485811,1740527453962,-569.93,0.00046849,120]
[354485812,1740527453972,-500.0,0.00046849,120]
[354485813,1740527453982,-500.0,0.00046849,120]
[354485814,1740527453992,-500.0,0.00046849,120]
[354485815,1740527454001,-631.03,0.00046849,120]
[354485816,1740527454011,-858.06,0.00046849,120]
[354485817,1740527454020,-733.85,0.00046849,120]
[354485818,1740527454030,-500.0,0.00046849,120]
[354485819,1740527454039,-1000.0,0.00046849,120]
[354485820,1740527454049,-500.0,0.00046849,120]
[354485821,1740527454058,-500.0,0.00046849,120]
[354485822,1740527454068,-500.0,0.00046849,120]
[354485823,1740527454077,-1034.96,0.00046849,120]
[354485824,1740527454087,-500.0,0.00046849,120]
[354485825,1740527454096,-767.11,0.00046849,120]
[354485826,1740527454106,-500.0,0.00046849,120]
[354485827,1740527454115,-1089.68,0.00046849,120]
[354485828,1740527454125,-500.0,0.00046849,120]
[354485829,1740527454134,-1255.26,0.00046849,120]
[354485830,1740527454143,-500.0,0.00046849,120]
[354485831,1740527454153,-500.0,0.00046849,120]
[354485832,1740527454162,-500.0,0.00046849,120]
[354485833,1740527454171,-500.0,0.00046849,120]
[354485834,1740527454181,-200.0,0.00046849,7]
[354485835,1740527454190,-500.0,0.00046849,120]
[354485836,1740527454200,-419.41905157,0.00046849,120]
[354485837,1740527454209,-685.24,0.00046849,120]
[354485838,1740527454223,-500.0,0.00046849,120]
[354485839,1740527454232,-500.0,0.00046849,120]
[354485840,1740527454242,-500.0,0.00046849,120]
[354485841,1740527454251,-686.79,0.00046849,120]
[354485842,1740527454261,-500.0,0.00046849,120]
[354485843,1740527454271,-500.0,0.00046849,120]
[354485844,1740527454281,-500.0,0.00046849,120]
[354485845,1740527454294,-500.0,0.00046849,120]
[354485846,1740527454304,-770.77,0.00046849,120]
[354485847,1740527454313,-500.0,0.00046849,120]
[354485848,1740527454322,-500.0,0.00046849,120]
[354485849,1740527454332,-500.0,0.00046849,120]
[354485850,1740527454342,-551.64,0.00046849,120]
[354485851,1740527454351,-500.0,0.00046849,120]
[354485852,1740527454361,-1814.25,0.00046849,120]
[354485853,1740527454370,-782.27,0.00046849,120]
[354485854,1740527454380,-967.52,0.00046849,120]
[354485855,1740527454390,-589.43,0.00046849,120]
[354485856,1740527454399,-516.04,0.00046849,120]
[354485857,1740527454409,-500.0,0.00046849,30]
[354485858,1740527454419,-2446.11,0.00046849,120]
[354485859,1740527454429,-1031.44,0.00046849,120]
[354485860,1740527454438,-500.0,0.00046849,120]
[354485861,1740527454448,-500.0,0.00046849,120]
[354485862,1740527454458,-2617.32,0.00046849,120]
[354485863,1740527454468,-500.0,0.00046849,120]
[354485864,1740527454478,-500.0,0.00046849,120]
[354485865,1740527454487,-1093.75,0.00046849,120]
[354485866,1740527454496,-500.0,0.00046849,120]
[354485867,1740527454506,-804.82,0.00046849,120]
[354485868,1740527454516,-500.0,0.00046849,120]
[354485869,1740527454528,-566.93,0.00046849,30]
[354485870,1740527454537,-2672.59,0.00046849,120]
[354485871,1740527454547,-551.83676534,0.00046849,120]
[354485872,1740527454556,-500.0,0.00046849,120]
[354485873,1740527454566,-1161.24,0.00046849,120]
[354485874,1740527454576,-500.0,0.00046849,120]
[354485875,1740527454586,-632.27,0.00046849,120]
[354485876,1740527454596,-500.0,0.00046849,120]
[354485877,1740527454606,-500.0,0.00046849,120]
[354485878,1740527454615,-1418.48,0.00046849,120]
[354485879,1740527454625,-1170.47,0.00046849,120]
[354485880,1740527454634,-1011.44,0.00046849,120]
[354485881,1740527454644,-500.0,0.00046849,120]
[354485882,1740527454653,-500.0,0.00046849,120]
[354485883,1740527454663,-793.02,0.00046849,120]
[354485884,1740527454672,-500.0,0.00046849,120]
[354485885,1740527454682,-2927.5,0.00046849,120]
[354485886,1740527454691,-1689.65,0.00046849,120]
[354485887,1740527454701,-930.87,0.00046849,120]
[354485888,1740527454710,-571.97,0.00046849,120]
[354485889,1740527454719,-725.08,0.00046849,120]
[354485890,1740527454729,-2055.73,0.00046849,120]
[354485891,1740527454739,-500.0,0.00046849,120]
[354485892,1740527454749,-500.0,0.00046849,120]
[354485893,1740527454758,-822.15,0.00046849,120]
[354485894,1740527454767,-636.03,0.00046849,120]
[354485895,1740527454777,-1584.58,0.00046849,120]
[354485896,1740527454787,-500.0,0.00046849,120]
[354485897,1740527454797,-500.0,0.00046849,120]
[354485898,1740527454806,-1182.56,0.00046849,120]
[354485899,1740527454815,-1614.47,0.00046849,120]
[354485900,1740527454825,-500.0,0.00046849,120]
[354485901,1740527454835,-1444.02,0.00046849,120]
[354485902,1740527454844,-2082.74,0.00046849,120]
[354485903,1740527454853,-500.0,0.00046849,120]
[354485904,1740527454863,-500.0,0.00046849,120]
[354485905,1740527454872,-514.38193189,0.00046849,120]
[354485906,1740527454882,-500.0,0.00046849,120]
[354485907,1740527454891,-1110.49,0.00046849,120]
[354485908,1740527454900,-500.0,0.00046849,120]
[354485909,1740527454910,-989.93,0.00046849,120]
[354485910,1740527454919,-562.0,0.00046849,120]
[354485911,1740527454928,-2876.02,0.00046849,120]
[354485912,1740527454938,-500.0,0.00046849,120]
[354485913,1740527454947,-2788.87,0.00046849,120]
[354485914,1740527454957,-2819.62,0.00046849,120]
[354485915,1740527454966,-516.05569511,0.00046849,120]
[354485916,1740527454977,-500.0,0.00046849,120]
[354485917,1740527454987,-2250.03,0.00046849,120]
[354485918,1740527454996,-500.0,0.00046849,120]
[354485919,1740527455006,-500.0,0.00046849,120]
[354485920,1740527455016,-500.0,0.00046849,120]
[354485921,1740527455026,-500.0,0.00046849,120]
[354485922,1740527455035,-681.27,0.00046849,120]
[354485923,1740527455046,-666.89,0.00046849,120]
[354485924,1740527455055,-500.0,0.00046849,120]
[354485925,1740527455064,-1829.41,0.00046849,120]